Workbook

Sheet Приложение №2
A1: "СОГЛАСОВАНО" | AC1: "УТВЕРЖДАЮ" | AK1: Приложение №2
A2: Директор РЦФКиЮС МДМиС РТ | AC2: Начальник УФиС Исполнительного комитета
A4: ____________________ /М.Т.Рахматуллина/ | AC4: _____________________/Н.Ш. Безрукова/
AC5: подпись | AI5: расшифровка подписи
A7: ПЛАН КОМПЛЕКТОВАНИЯ
A8: Муниципального бюджетного образовательного учреждения дополнительного образования детей "Детско-юношеской спортивной школы "Челны"
A9: на 2014 - 2015 учебный год
A11: № | B11: Ф.И.О. | D11: Образование | E11: Штат/совмес. | F11: СО | I11: НП | O11: Т (СС) | AD11: ССМ | AJ11: ВСМ | AM11: Всего групп | AN11: Всего учащ. | AO11: Кол-во час/нед | AP11: Сумма % по нормативу
J12: 1 г.о. | L12: 2 г.о. | O12: 1 г.о. | R12: 2 г.о. | U12: 3 г.о. | X12: 4 г.о. | AA12: 5 г.о. | AD12: 1 г.о. | AG12: 2 г.о.
F13: групп | G13: учащихся | H13: часы | I13: групп | J13: учащихся | K13: часы | L13: групп | M13: учащихся | N13: часы | O13: групп | P13: учащихся | Q13: часы | R13: групп | S13: учащихся | T13: часы | U13: групп | V13: учащихся | W13: часы | X13: групп | Y13: учащихся | Z13: часы | AA13: групп | AB13: учащихся | AC13: часы | AD13: групп | AE13: учащихся | AF13: часы | AG13: групп | AH13: учащихся | AI13: часы | AJ13: групп | AK13: учащихся | AL13: часы
A14: ОТДЕЛЕНИЕ ХОККЕЯ С ШАЙБОЙ
F15: 1.5% | I15: 2.4% | L15: 3.6% | O15: 5.6% | R15: 8.3% | U15: 10.0% | X15: 10.0% | AA15: 11.1% | AD15: 17.0% | AG15: 20.0% | AJ15: %
A16: 1 | B16: Шарапов Роберт Альбертович | C16: Шарапов Роберт Альбертович | D16: В | E16: Ш | X16: 1 | Y16: 10 | Z16: 18 | AA16: 1 | AB16: 10 | AC16: 18 | AM16: =F16+I16+L16+O16+R16+U16+X16+AA16+AD16+AG16 -> 2 | AN16: =G16+J16+M16+P16+S16+V16+Y16+AB16+AE16+AH16 -> 20 | AO16: =H16+K16+N16+Q16+T16+W16+Z16+AC16+AF16+AI16+AL16 -> 36 | AP16: =G16*F15+J16*I15+M16*L15+P16*O15+S16*R15+V16*U15+Y16*X15+AB16*AA15+AE16*AD15+AH16*AG15 -> 2.110
A17: 2 | B17: Соколов Евгений Иванович | C17: Соколов Евгений Иванович | D17: В | E17: С | X17: 1 | Y17: 10 | Z17: 16 | AM17: =F17+I17+L17+O17+R17+U17+X17+AA17+AD17+AG17 -> 1 | AN17: =G17+J17+M17+P17+S17+V17+Y17+AB17+AE17+AH17+AK17 -> 10 | AO17: 16 | AP17: =G17*F15+J17*I15+M17*L15+P17*O15+S17*R15+V17*U15+Y17*X15+AB17*AA15+AE17*AD15+AH17*AG15 -> 1.000
A18: 3 | B18: Улепнов Эдуард Анатольевич | C18: Улепнов Эдуард Анатольевич | D18: В | E18: Ш | X18: 2 | Y18: 20 | Z18: 36 | AM18: =F18+I18+L18+O18+R18+U18+X18+AA18+AD18+AG18+AJ18 -> 2 | AN18: 20 | AO18: 36 | AP18: =G18*+F15*J18*I15+M18*L15+P18*O15+S18*R15+V18*U15+Y18*X15+AB18*AA15+AE18*AD15+AH18*AG15 -> 2.000
A19: 4 | B19: Молчанюк Евгений Вячеславович | C19: Молчанюк Евгений Вячеславович | D19: В | E19: Ш | U19: 2 | V19: 24 | W19: 36 | AM19: 2 | AN19: 24 | AO19: 36 | AP19: =G19*F15+J19*I15+M19*L15+P19*O15+S19*R15+V19*U15+Y19*X15+AB19*AA15+AE19*AD15+AH19*AG15 -> 2.400
A20: 5 | B20: Девятовский Александр Николаевич | C20: Девятовский Александр Николаевич | D20: В | E20: Ш | U20: 2 | V20: 24 | W20: 36 | AM20: 2 | AN20: 24 | AO20: 36 | AP20: =G20*F15+J20*I15+M20*L15+P20*O15+S20*R15+V20*U15+Y20*X15+AB20*AA15+AE20*AD15+AH20*AG15+AK20 -> 2.400
A21: 6 | B21: Миннеханов Ильдар Анасович | C21: Миннеханов Ильдар Анасович | D21: В | E21: Ш | F21: 3 | G21: 45 | H21: 12 | R21: 1 | S21: 10 | T21: 15 | AM21: 4 | AN21: 55 | AO21: 27 | AP21: =G21*F15+J21*I15+M21*L15+P21*O15+S21*R15+V21*U15+Y21*X15+AB21*AA15+AE21*AD15+AH21*AG15 -> 1.505
A22: 7 | B22: Бубукин Владимир Иванович | C22: Бубукин Владимир Иванович | D22: В | E22: Ш | R22: 2 | S22: 24 | T22: 30 | AM22: 2 | AN22: 24 | AO22: 30 | AP22: 2.000
A23: 8 | B23: Овчинников Вячеслав Федорович | C23: Овчинников Вячеслав Федорович | D23: В | E23: Ш | O23: 1 | P23: 12 | Q23: 12 | U23: 1 | V23: 11 | W23: 18 | AM23: 2 | AN23: 23 | AO23: 30 | AP23: =G23*F15+J23*I15+M23*L15+P23*O15+S23*R15+V23*U15+Y23*X15+AB23*AA15+AE23*AD15+AH23*AG15 -> 1.772
A24: 9 | B24: Бикмухамедов Шаукат Газизович | C24: Бикмухамедов Шаукат Газизович | D24: В | E24: Ш | O24: 2 | P24: 24 | Q24: 24 | AM24: 2 | AN24: 24 | AO24: 24 | AP24: =G24*F15+J24*I15+M24*L15+P24*O15+S24*R15+V24*U15+Y24*X15+AB24*AA15+AE24*AD15+AH24*AG15 -> 1.344
A25: 10 | B25: Сергейчев Виктор Николаевич | C25: Сергейчев Виктор Николаевич | D25: В | E25: Ш | L25: 4 | M25: 56 | N25: 36 | AM25: 4 | AN25: 56 | AO25: 36 | AP25: =G25*F15+J25*I15+M25*L15+P25*O15+S25*R15+V25*U15+Y25*X15+AB25*AA15+AE25*AD15+AH25*AG15 -> 2.016
A26: 11 | B26: Самигуллин Рафаэль Раилович | C26: Самигуллин Рафаэль Раилович | D26: В | E26: Ш | I26: 1 | J26: 14 | K26: 6 | L26: 3 | M26: 42 | N26: 27 | AM26: 4 | AN26: 56 | AO26: 33 | AP26: =G26*F15+J26*I15+M26*L15+P26*O15+S26*R15+V26*U15+Y26*X15+AB26*AA15+AE26*AD15+AH26*AG15 -> 1.848
A27: 12 | B27: Газимов Ильназ Рашитович | C27: Газимов Ильназ Рашитович | D27: В | E27: Ш | F27: 2 | G27: 30 | H27: 8 | I27: 3 | J27: 42 | K27: 18 | AM27: 5 | AN27: 72 | AO27: 26 | AP27: =G27*F15+J27*I15+M27*L15+P27*O15+S27*R15+V27*U15+Y27*X15+AB27*AA15+AE27*AD15+AH27*AG15 -> 1.458
A28: ИТОГО по отделению: | E28: 11/1 | F28: =SUM(F16:F27) -> 5 | G28: 75 | H28: 20 | I28: 4 | J28: 56 | K28: 24 | L28: 7 | M28: 98 | N28: 63 | O28: 3 | P28: 36 | Q28: 36 | R28: 3 | S28: 34 | T28: 45 | U28: 5 | V28: 59 | W28: 90 | X28: 4 | Y28: 40 | Z28: 70 | AA28: 1 | AB28: 10 | AC28: 18 | AD28: 0 | AE28: 0 | AF28: 0 | AG28: 0 | AH28: 0 | AI28: 0 | AJ28: 0 | AK28: 0 | AL28: 0 | AM28: =SUM(AM16:AM27) -> 32 | AN28: =SUM(AN16:AN27) -> 408 | AO28: =SUM(AO16:AO27) -> 366 | AP28: =AP16+AP17+AP18+AP19+AP20+AP21+AP22+AP23+AP24+AP25+AP26+AP27 -> 21.853
A29: ОТДЕЛЕНИЕ ФИГУРНОГО КАТАНИЯ НА КОНЬКАХ
F30: 1.1% | I30: 2.8% | L30: 4.4% | O30: 11.1% | R30: 16.7% | U30: 16.7% | X30: 18.5% | AA30: 0.0% | AD30: 20.0% | AG30: 30.0% | AJ30: %
A31: 13 | B31: Ахметзянова Наталья Николаевна | C31: Ахметзянова Наталья Николаевна | D31: В | E31: Ш | X31: 2 | Y31: 11 | Z31: 36 | AM31: =F31+I31+L31+O31+R31+U31+X31+AA31+AD31+AG31+AJ31 -> 2 | AN31: 11 | AO31: 36 | AP31: =G31*F30+J31*I30+M31*L30+P31*O30+S31*R30+V31*U30+Y31*X30+AB31*AA30+AE31*AD30+AH31*AG30 -> 2.035
A32: 14 | B32: Махранова Марина Александровна | C32: Махранова Марина Александровна | D32: В | E32: Ш | I32: 2 | J32: 40 | K32: 20 | L32: 1 | M32: 15 | N32: 12 | AM32: 3 | AN32: 55 | AO32: 32 | AP32: =G32*F30+J32*I30+M32*L30+P32*O30+S32*R30+V32*U30+Y32*X30+AB32*AA30+AE32*AD30+AH32*AG30 -> 1.780
A33: 15 | B33: Шашлакова Наталья Владимировна | C33: Шашлакова Наталья Владимировна | D33: В | E33: Ш | L33: 1 | M33: 15 | N33: 12 | U33: 1 | V33: 7 | W33: 18 | AM33: 2 | AN33: 22 | AO33: 30 | AP33: =G33*F30+J33*I30+M33*L30+P33*O30+S33*R30+V33*U30+Y33*X30+AB33*AA30+AE33*AD30+AH33*AG30 -> 1.829
A34: 16 | B34: Масликов Анатолий Алексеевич | C34: Масликов Анатолий Алексеевич | D34: В | E34: С | F34: 1 | G34: 20 | H34: 4 | L34: 1 | M34: 15 | N34: 12 | AM34: =F34+I34+L34+O34+R34+U34+X34+AD34+AG34+AJ34 -> 2 | AN34: =G34+J34+M34+P34+S34+V34+Y34+AB34+AE34+AH34+AK34 -> 35 | AO34: =H34+K34+N34+Q34+T34+W34+Z34+AC34+AF34+AI34+AL34 -> 16 | AP34: =G34*F30+J34*I30+M34*L30+P34*O30+S34*R30+V34*U30+Y34*X30+AB34*AA30+AE34*AD30+AH34*AG30 -> 0.880
A35: 17 | B35: Варенова Татьяна Михайловна | C35: Варенова Татьяна Михайловна (постановка программы на льду) | D35: В | E35: Ш | X35: 1 | Y35: 6 | Z35: 18 | AM35: =F35+I35+L35+O35+R35+U35+X35+AA35+AD35+AG35+AJ35 -> 1 | AN35: =G35+J35+M35+P35+S35+V35+Y35+AB35+AE35+AH35+AK35 -> 6 | AO35: =H35+K35+N35+Q35+T35+W35+Z35+AC35+AF35+AI35+AL35 -> 18 | AP35: =G35*F30+J35*I30+M35*L30+P35*O30+S35*R30+V35*U30+Y35*X30+AB35*AA30+AE35*AD30+AH35*AG30 -> 1.110
B36: (постановка программы на льду) | W36: 3 | Z36: 9 | AO36: =H36+K36+N36+Q36+T36+W36+Z36+AC36+AF36+AI36+AL36 -> 12 | AP36: 0.667
A37: 18 | B37: Новикова Юлия Викторовна (хореография) | C37: Новикова Юлия Викторовна (хореография) | D37: В | E37: Ш | H37: 1 | K37: 2 | N37: 6 | W37: 3 | Z37: 9 | AO37: =H37+K37+N37+Q37+T37+W37+Z37+AC37+AF37+AI37+AL37 -> 21 | AP37: 1.166
A38: ИТОГО по отделению: | E38: 5/1 | F38: =SUM(F31:F37) -> 1 | G38: 20 | H38: 5 | I38: 2 | J38: 40 | K38: 22 | L38: 3 | M38: 45 | N38: 42 | O38: 0 | P38: 0 | Q38: 0 | R38: 0 | S38: 0 | T38: 0 | U38: =SUM(U31:U37) -> 1 | V38: 7 | W38: 24 | X38: 3 | Y38: 17 | Z38: 72 | AA38: 0 | AB38: 0 | AC38: 0 | AD38: 0 | AE38: 0 | AF38: 0 | AG38: 0 | AH38: 0 | AI38: 0 | AJ38: 0 | AK38: 0 | AL38: 0 | AM38: =SUM(AM31:AM37) -> 10 | AN38: =SUM(AN31:AN37) -> 129 | AO38: =SUM(AO31:AO37) -> 165 | AP38: =AP31+AP32+AP33+AP34+AP35+AP36+AP37 -> 9.467
A39: ВСЕГО по организации | E39: 16/2 | F39: =F28+F38 -> 6 | G39: 95 | H39: 25 | I39: 6 | J39: 96 | K39: 46 | L39: 10 | M39: 143 | N39: 105 | O39: 3 | P39: 36 | Q39: 36 | R39: 3 | S39: 34 | T39: 45 | U39: 6 | V39: 66 | W39: 114 | X39: 7 | Y39: 57 | Z39: 142 | AA39: 1 | AB39: 10 | AC39: 18 | AD39: 0 | AE39: 0 | AF39: 0 | AG39: 0 | AH39: 0 | AI39: 0 | AJ39: 0 | AK39: 0 | AL39: 0 | AM39: 42 | AN39: 537 | AO39: 531 | AP39: 31.320
D41: Директор организации | L41: ________________ /Р.Т. Файзрахманов/ | AB41: Количество тренерских ставок по штатному расписанию 32
M42: подпись | O42: расшифровка подписи
D43: Ответственный за составление | L43: ________________ /А.В. Шевяхов/
M44: подпись | O44: расшифровка подписи

Sheet ОБРАЗЕЦ
A1: "СОГЛАСОВАНО" | AC1: "УТВЕРЖДАЮ" | AK1: Приложение №2
A2: Директор РЦФКиЮС МДМиС РТ | AC2: Учредитель (Должность, Ф.И.О.)
A4: ____________________ /М.Т.Рахматуллина/ | AC4: __________________ /_______________________________ /
AC5: подпись | AI5: расшифровка подписи
A7: ПЛАН КОМПЛЕКТОВАНИЯ
A8: (полное наименование РСДЮСШОР, СДЮШОР, ДЮСШ)
A9: на 2014 - 2015 учебный год
A11: № | B11: Ф.И.О. | D11: Образование | E11: Штат/совмес. | F11: СО | I11: НП | O11: Т (СС) | AD11: ССМ | AJ11: ВСМ | AM11: Всего групп | AN11: Всего учащ. | AO11: Кол-во час/нед | AP11: Сумма % по нормативу
J12: 1 г.о. | L12: 2 г.о. | O12: 1 г.о. | R12: 2 г.о. | U12: 3 г.о. | X12: 4 г.о. | AA12: 5 г.о. | AD12: 1 г.о. | AG12: 2 г.о.
F13: групп | G13: учащихся | H13: часы | I13: групп | J13: учащихся | K13: часы | L13: групп | M13: учащихся | N13: часы | O13: групп | P13: учащихся | Q13: часы | R13: групп | S13: учащихся | T13: часы | U13: групп | V13: учащихся | W13: часы | X13: групп | Y13: учащихся | Z13: часы | AA13: групп | AB13: учащихся | AC13: часы | AD13: групп | AE13: учащихся | AF13: часы | AG13: групп | AH13: учащихся | AI13: часы | AJ13: групп | AK13: учащихся | AL13: часы
A14: ОТДЕЛЕНИЕ ДЗЮДО
F15: 1.5% | I15: 2.2% | L15: 3.6% | O15: 4.6% | R15: 5.6% | U15: 7.8% | X15: 8.9% | AA15: 10.0% | AD15: 17.0% | AG15: 23.0% | AJ15: %
A16: 1 | D16: В | E16: Ш | L16: 2 | M16: 40 | N16: 18 | U16: 1 | V16: 12 | W16: 14 | AM16: 3 | AN16: 52 | AO16: 32 | AP16: 2.38
A17: 2 | D17: В | E17: Ш | I17: 2 | J17: 40 | K17: 12 | L17: 1 | M17: 20 | N17: 9 | AM17: 3 | AN17: 60 | AO17: 21 | AP17: 1.60
A18: 3 | D18: В | E18: Ш | F18: 1 | G18: 25 | H18: 4 | O18: 1 | P18: 18 | Q18: 10 | R18: 1 | S18: 15 | T18: 12 | AM18: 3 | AN18: 58 | AO18: 26 | AP18: 2.04
A19: ИТОГО по отделению: | E19: 3/0 | F19: 1 | G19: 25 | H19: 4 | I19: 2 | J19: 40 | K19: 12 | L19: 3 | M19: 60 | N19: 27 | O19: 1 | P19: 18 | Q19: 10 | R19: 1 | S19: 15 | T19: 12 | U19: 1 | V19: 12 | W19: 14 | X19: 0 | Y19: 0 | Z19: 0 | AA19: 0 | AB19: 0 | AC19: 0 | AD19: 0 | AE19: 0 | AF19: 0 | AG19: 0 | AH19: 0 | AI19: 0 | AJ19: 0 | AK19: 0 | AL19: 0 | AM19: 9 | AN19: 170 | AO19: 79 | AP19: 6.02
A20: ОТДЕЛЕНИЕ ХОККЕЯ С ШАЙБОЙ
F21: 1.5% | I21: 2.4% | L21: 3.6% | O21: 5.6% | R21: 8.3% | U21: 10.0% | X21: 10.0% | AA21: 11.0% | AD21: 17.0% | AG21: 20.0% | AJ21: %
A22: 4 | D22: В | E22: Ш | O22: 3 | P22: 45 | Q22: 36 | AM22: 3 | AN22: 45 | AO22: 36 | AP22: 2.52
A23: 5 | D23: В | E23: Ш | U23: 2 | V23: 36 | W23: 36 | AM23: 2 | AN23: 36 | AO23: 36 | AP23: 3.60
A24: 6 | D24: В | E24: Ш | AA24: 2 | AB24: 30 | AC24: 36 | AM24: 2 | AN24: 30 | AO24: 36 | AP24: 3.30
A25: 7 | D25: В | E25: Ш | AA25: 2 | AB25: 30 | AC25: 36 | AM25: 2 | AN25: 30 | AO25: 36 | AP25: 3.30
A26: 8 | D26: Н/В | E26: С | L26: 1 | M26: 15 | N26: 9 | AM26: 1 | AN26: 15 | AO26: 9 | AP26: 0.54
A27: 9 | D27: В | E27: Ш | AA27: 2 | AB27: 30 | AC27: 36 | AM27: 2 | AN27: 30 | AO27: 36 | AP27: 3.30
A28: 10 | D28: В | E28: Ш | X28: 2 | Y28: 36 | Z28: 36 | AM28: 2 | AN28: 36 | AO28: 36 | AP28: 3.60
A29: 11 | D29: Ср | E29: Ш | R29: 2 | S29: 36 | T29: 30 | AM29: 2 | AN29: 36 | AO29: 30 | AP29: 2.99
A30: ИТОГО по отделению: | E30: 7/1 | F30: 0 | G30: 0 | H30: 0 | I30: 0 | J30: 0 | K30: 0 | L30: 1 | M30: 15 | N30: 9 | O30: 3 | P30: 45 | Q30: 36 | R30: 2 | S30: 36 | T30: 30 | U30: 2 | V30: 36 | W30: 36 | X30: 2 | Y30: 36 | Z30: 36 | AA30: 6 | AB30: 90 | AC30: 108 | AD30: 0 | AE30: 0 | AF30: 0 | AG30: 0 | AH30: 0 | AI30: 0 | AJ30: 0 | AK30: 0 | AL30: 0 | AM30: 16 | AN30: 258 | AO30: 255 | AP30: 23,15
A31: ОТДЕЛЕНИЕ ФИГУРНОГО КАТАНИЯ
F32: 1.1% | I32: 2.8% | L32: 4.4% | O32: 11.1% | R32: 16.7% | U32: 16.7% | X32: 18.5% | AA32: 0.0% | AD32: 20.0% | AG32: 30.0% | AJ32: %
A33: 12 | D33: В | E33: Ш | I33: 1 | J33: 20 | K33: 10 | L33: 2 | M33: 38 | N33: 24 | AM33: 3 | AN33: 58 | AO33: 34 | AP33: 2.23
A34: 13 | D34: В | E34: Ш | I34: 1 | J34: 20 | K34: 10 | L34: 2 | M34: 38 | N34: 24 | AM34: 3 | AN34: 58 | AO34: 34 | AP34: 2.23
A35: 14 | D35: Н/В | E35: С | I35: 1 | J35: 20 | K35: 10 | AM35: 1 | AN35: 20 | AO35: 10 | AP35: 0.56
A36: ИТОГО по отделению | E36: 2/1 | F36: 0 | G36: 0 | H36: 0 | I36: 3 | J36: 60 | K36: 30 | L36: 4 | M36: 76 | N36: 48 | O36: 0 | P36: 0 | Q36: 0 | R36: 0 | S36: 0 | T36: 0 | U36: 0 | V36: 0 | W36: 0 | X36: 0 | Y36: 0 | Z36: 0 | AA36: 0 | AB36: 0 | AC36: 0 | AD36: 0 | AE36: 0 | AF36: 0 | AG36: 0 | AH36: 0 | AI36: 0 | AJ36: 0 | AK36: 0 | AL36: 0 | AM36: 7 | AN36: 136 | AO36: 78 | AP36: 5.02
A37: ВСЕГО по организации | E37: 12/2 | F37: 1 | G37: 25 | H37: 4 | I37: 5 | J37: 100 | K37: 42 | L37: 8 | M37: 151 | N37: 84 | O37: 4 | P37: 63 | Q37: 46 | R37: 3 | S37: 51 | T37: 42 | U37: 3 | V37: 48 | W37: 50 | X37: 2 | Y37: 36 | Z37: 36 | AA37: 6 | AB37: 90 | AC37: 108 | AD37: 0 | AE37: 0 | AF37: 0 | AG37: 0 | AH37: 0 | AI37: 0 | AJ37: 0 | AK37: 0 | AL37: 0 | AM37: 32 | AN37: 564 | AO37: 412 | AP37: 34.19
AO38: 22.9
D39: Директор организации | L39: ________________ /_________________________ / | AB39: Количество тренерских ставок по штатному расписанию _________
M40: подпись | O40: расшифровка подписи
D41: Ответственный за составление | L41: ________________ /_________________________ /
M42: подпись | O42: расшифровка подписи
